Cogmind - Beta 15 @@@ ROGUE MODE // 2025.07.05 @ 06:04:38 Player: puppuppit Result: Self-destructed Performance ------------- Evolutions (2) 1000 Regions Visited (6) 1200 Robots Destroyed (229) 1145 Value Destroyed (5047) 5047 Prototype IDs (13) 260 Alien Tech Used (0) 0 Bonus (960) 960 TOTAL SCORE: 9612 Bonus ------- High Alert Combat Kills 960 Cogmind --------- Core Integrity 275/550 Matter 300/300 Energy 125/125 System Corruption 7% Temperature Cool (0) Movement Rolling (101) Ox1 Location -8/Storage Parts ------- > --- POWER (1) -------- Light Ion Engine (fused) > --- PROPULSION (3) --- Wheel Wheel Compact Wheel > --- UTILITY (3) ------ Improved Heat Sink Large Storage Unit Hacking Suite > --- WEAPON (4) ------- Heavy Particle Gun Heavy Assault Rifle Autogun Improved Grenade Launcher > --- INVENTORY (15) --- Cooled Deuterium Engine High-capacity Matter Pod (200) High-capacity Matter Pod (200) Improved Propulsion Shielding Improved Medium Armor Plating Improved Medium Armor Plating Assault Rifle Assault Rifle Heavy Assault Rifle Minigun Gauss Rifle Gauss Cannon Gauss Cannon Missile Launcher Peak State ------------ > --- POWER ------------ Cooled Deuterium Engine > --- PROPULSION ------- Armored Treads Armored Treads Advanced Treads > --- UTILITY ---------- Large Storage Unit Improved Medium Armor Plating Hacking Suite > --- WEAPON ----------- Gauss Cannon Gauss Cannon Gauss Cannon Gauss Cannon > --- INVENTORY -------- Light Treads Improved Treads Armored Treads Improved Heat Sink High-capacity Matter Pod High-capacity Matter Pod Recoil Stabilizer Hacking Suite Assault Rifle Heavy Assault Rifle Heavy Assault Rifle Autogun Improved Assault Rifle Gauss Rifle Improved Grenade Launcher [Rating: 41] Favorites ----------- Power Ion Engine Engine Ion Engine Power Core Nuclear Core Propulsion Light Treads Treads Light Treads Wheel Wheel Hover Unit Aerolev Unit Utility Large Storage Unit Device Shield Generator Storage Large Storage Unit Processor Advanced Targeting Computer Hackware Hacking Suite Protection Medium Armor Plating Weapon Heavy Assault Rifle Energy Gun Heavy Particle Gun Ballistic Gun Heavy Assault Rifle Ballistic Cannon Gauss Cannon Launcher Improved Grenade Launcher Build | -11 -10 -10 -10 -9 -8 -8 ------- Run | Yrd Mat Min Exi Min Mat Sto Slots Evolved 4 | . . . . . 4 . Power . | . . . . . . . Propulsion 1 | . . . . . 1 . Utility 1 | . . . . . 1 . Weapon 2 | . . . . . 2 . Parts Attached 81 | 7 11 2 1 1 46 13 Power 13 | 1 3 . . . 7 2 Engine 11 | 1 3 . . . 5 2 Core 2 | . . . . . 2 . Reactor . | . . . . . . . Propulsion 18 | 2 1 . . . 11 4 Treads 14 | 2 1 . . . 10 1 Leg . | . . . . . . . Wheel 3 | . . . . . . 3 Hover 1 | . . . . . 1 . Flight . | . . . . . . . Utility 24 | 2 5 1 1 1 11 3 Device 9 | 1 2 1 . 1 3 1 Storage 5 | 1 2 . 1 . 1 . Processor 2 | . 1 . . . 1 . Hackware 4 | . . . . . 2 2 Protection 4 | . . . . . 4 . Artifact . | . . . . . . . Weapon 26 | 2 2 1 . . 17 4 Energy Gun 3 | 1 . . . . . 2 Energy Cannon . | . . . . . . . Ballistic Gun 15 | 1 2 . . . 11 1 Ballistic Cannon 4 | . . . . . 4 . Launcher 4 | . . 1 . . 2 1 Special Weapon . | . . . . . . . Impact Weapon . | . . . . . . . Slashing Weapon . | . . . . . . . Piercing Weapon . | . . . . . . . Special Melee Weapon . | . . . . . . . Unidentified Prototypes 8 | . . . . . 5 3 Parts Lost 21 | . 1 1 . . 10 9 Power 3 | . 1 . . . 1 1 Propulsion 4 | . . . . . . 4 Utility 5 | . . 1 . . 3 1 Weapon 9 | . . . . . 6 3 Highest Loss Streak 8 | . 1 1 . . 5 8 To Critical Strikes . | . . . . . . . Average Backups 13 | . 13 14 14 14 14 13 Power . | . . . . 1 . 1 Propulsion 1 | . . 1 2 2 3 1 Utility 5 | . 6 5 4 4 5 5 Weapon 6 | . 6 8 8 6 5 5 Tool/Special . | . . . . . . . Unused Backups 32 | . 6 3 3 . 10 10 Power 3 | . . . . . 2 1 Propulsion 6 | . . . . . 6 . Utility 12 | . 3 2 . . 2 5 Weapon 11 | . 3 1 3 . . 4 Tool/Special . | . . . . . . . Average Slot Usage (%) 96 | . 99 99 73 89 96 97 Engine 9 | . 13 14 14 14 4 8 Core 1 | . . . . . 4 . Treads 26 | . 28 28 28 28 27 23 Device 8 | . 12 13 14 14 4 5 Storage 11 | . 14 14 14 14 9 9 Processor 1 | . 1 . . . 2 . Hackware 3 | . . . . . 2 11 Protection 1 | . . . . . 5 . Ballistic Gun 21 | . 27 28 2 18 33 3 Ballistic Cannon 8 | . . . . . 1 30 Peak Build Rating 41 | 9 12 12 12 13 41 41 Average Rating 22 | 7 11 11 8 10 28 35 On Entrance 13 | . 9 12 12 8 12 38 Naked Turns . | . . . . . . . Heaviest Build 66 | 15 33 33 33 33 66 64 Greatest Support 65 | 40 40 40 40 40 65 65 Greatest Overweight (x) 11 | . . . . . 1 11 Average Overweight (x) . | . . . . . . . Largest Inventory Capacity 15 | 8 15 15 15 15 15 15 Average Capacity 14 | 7 14 15 15 15 15 15 Most Carried 15 | 2 15 15 15 15 15 15 Average Carried 13 | . 13 14 14 14 14 13 Final Capacity 15 | 8 15 15 15 15 15 15 Final Carried 15 | 2 15 15 15 15 15 14 Class Distribution -------------------- 43% | Mutant 21% | Gunner 11% | Tank 10% | Hacker-Gunner 9% | Scavenger-Tank 3% | Scavenger-Gunner Dominant Class ---------------- Mutant | -10/Materials Mutant | -10/Mines Mutant | -10/Exiles Mutant | -9/Mines Tank | -8/Materials Gunner | -8/Storage Resources | -11 -10 -10 -10 -9 -8 -8 ----------- Run | Yrd Mat Min Exi Min Mat Sto Matter Collected 7590 | 430 950 218 9 78 2565 3340 Remotely . | . . . . . . . Salvage Created 8055 | 260 1153 484 . 110 3047 3001 Parts 421 | 22 62 30 . 13 167 127 Haulers Intercepted 14 | . 2 . . . 6 6 Recyclers Shooed 10 | 1 1 . . . 3 5 Parts Field Recycled . | . . . . . . . Retrieved Matter . | . . . . . . . Parts Self-Destructed . | . . . . . . . Prevented . | . . . . . . . Kills | -11 -10 -10 -10 -9 -8 -8 ------- Run | Yrd Mat Min Exi Min Mat Sto Combat Hostiles Destroyed 123 | . 16 11 . . 50 46 Guns 70 | . 16 8 . . 39 7 Cannons 25 | . . . . . . 25 AOE 28 | . . 3 . . 11 14 Classes Destroyed 15 | 3 6 . . . 3 3 Worker 24 | 2 6 2 . . 9 5 Builder 13 | . 2 . . 1 6 4 Tunneler 7 | 6 . . . 1 . . Hauler 14 | . 2 . . . 6 6 Recycler 36 | 1 4 2 . 1 5 23 Operator 5 | . 1 . . . 2 2 Watcher 10 | . 3 . . . 5 2 Swarmer 36 | . 5 9 . . 15 7 Grunt 55 | . 11 2 . . 24 18 Brawler 3 | . . . . . . 3 Duelist 2 | . . . . . . 2 Protector 4 | . . . . . . 4 Sentry 19 | . . . . . 8 11 Hunter 3 | . . . . . 2 1 Heavy 1 | . . . . . 1 . Best Kill Streak 8 | 3 3 3 . 2 8 8 Combat Bots Only 6 | . 3 3 . . 5 6 Max Kills in Single Turn 3 | 1 1 3 . 1 3 2 Gunslinging 1 | . . 1 . . . . Exploded 3 | . . 3 . . 3 2 Melee . | . . . . . . . Uniques/NPCs Destroyed . | . . . . . . . Combat | -11 -10 -10 -10 -9 -8 -8 -------- Run | Yrd Mat Min Exi Min Mat Sto Hostile Shots Fired 461 | . 66 34 . . 190 171 Missed 122 | . 20 11 . . 54 37 Hits 339 | . 46 23 . . 136 134 Melee 6 | . . . . . . 6 Projectile 333 | . 46 23 . . 136 128 Critical Strikes 16 | . . 1 . . 4 11 Damage Taken 4849 | . 447 187 . . 2027 2188 Core 324 | . 19 30 . . 63 212 Absorbed by Shields 490 | . 122 73 . . 295 . Regen/Repaired (Parts) 657 | . 113 . . . 140 404 Core Remaining (%) 90 | 100 . . . 80 . . Volleys Fired 405 | 20 85 29 . 3 139 129 Largest 4 | 2 2 2 . 2 4 4 Hottest 160 | 70 46 46 . 46 99 160 Shots Fired 1249 | 40 170 56 . 6 523 454 Gun 871 | 40 170 54 . 6 512 89 Cannon 354 | . . . . . . 354 Launcher 24 | . . 2 . . 11 11 Special . | . . . . . . . Kinetic 1192 | 20 170 54 . 6 512 430 Thermal 33 | 20 . . . . . 13 Explosive 24 | . . 2 . . 11 11 Electromagnetic . | . . . . . . . Robot Hit Streak 31 | 5 11 6 . 4 31 13 Robot Miss Streak 10 | 2 6 2 . . 4 10 Penetration Max 1 | . . . . . . 1 Secondary Targets 8 | . 1 2 . . 5 . Max Gunslinging Chain 1 | . 1 1 . . 1 . Shots Hit Robots 676 | 22 103 35 . 3 293 220 Core Hits 320 | 10 40 20 . 3 139 108 Critical Kills 1 | . . . . . 1 . Critical Parts Destroyed 3 | . 3 . . . . . Critical Strikes 30 | 1 3 . . . 1 25 Burn 2 | 1 . . . . . 1 Destroy 4 | . 3 . . . 1 . Blast 24 | . . . . . . 24 Melee Attacks . | . . . . . . . Impact . | . . . . . . . Slashing . | . . . . . . . Piercing . | . . . . . . . Sneak Attacks . | . . . . . . . Combat Hostiles . | . . . . . . . Follow-up Attacks . | . . . . . . . Damage Inflicted 16094 | 297 1612 639 . 45 5498 8003 Guns 7931 | 297 1612 517 . 45 4646 814 Cannons 5699 | . . . . . . 5699 Explosions 2460 | . . 122 . . 848 1490 Melee . | . . . . . . . Ramming 4 | . . . . . 4 . Kinetic 13391 | 160 1612 517 . 45 4646 6411 Thermal 239 | 137 . . . . . 102 Explosive 2460 | . . 122 . . 848 1490 Electromagnetic . | . . . . . . . Impact . | . . . . . . . Slashing . | . . . . . . . Piercing . | . . . . . . . Highest Corruption 7 | . 1 1 1 1 4 7 Average Corruption 3 | . 1 1 1 1 3 6 Corruption Purged . | . . . . . . . Corruption Blocked . | . . . . . . . Effects 132 | . 11 9 5 1 42 64 Message Errors 41 | . 2 4 1 . 15 19 Matter Fused 31 | . 3 1 1 . 8 18 Heat Flow Errors 10 | . 2 1 1 . 2 4 Energy Discharges 18 | . . . 2 1 6 9 Parts Fused 2 | . . . . . 1 1 Data Loss (minor) 16 | . 2 3 . . 4 7 Data Loss (major) 3 | . 2 . . . . 1 Misfires 5 | . . . . . 3 2 Alerts 1 | . . . . . . 1 Weapon Failures 5 | . . . . . 3 2 Overload Shots . | . . . . . . . Overflow Damage 311 | . . 30 . . 30 251 Projectiles 220 | . . . . . . 220 Explosions 91 | . . 30 . . 30 31 Melee . | . . . . . . . Knockbacks 37 | . . . . . . 37 Impact . | . . . . . . . Kinetic 31 | . . . . . . 31 Secondary 6 | . . . . . . 6 Self-Inflicted Damage 75 | . . 24 . . 15 36 Shots 3 | . . 1 . . 1 1 Rammed 1 | . . . . . 1 . Targets Rammed 1 | . . . . . 1 . Kicked . | . . . . . . . Crushed . | . . . . . . . Highest Temperature 420 | 72 253 143 153 . 267 420 Average Temperature 82 | 31 94 52 78 . 60 116 Received Heat Transfer 1866 | . 148 55 . . 574 1089 Effects 12 | . . . . . . 12 Energy Bleed 2 | . . . . . . 2 Interference 4 | . . . . . . 4 Matter Decay 1 | . . . . . . 1 Damage (minor) 1 | . . . . . . 1 Damage (major) 4 | . . . . . . 4 Siege Activations . | . . . . . . . Martial Activations . | . . . . . . . Shielding Activations . | . . . . . . . Robots Disrupted . | . . . . . . . Combat Hostiles . | . . . . . . . Robots Corrupted . | . . . . . . . Combat Hostiles . | . . . . . . . Parts Fried . | . . . . . . . Impact Corruptions 1 | . . . . . . 1 Robots Melted . | . . . . . . . Combat Hostiles . | . . . . . . . Parts Melted . | . . . . . . . Heat Transferred 730 | 481 . . . . . 249 Parts Sabotaged . | . . . . . . . Parts Stolen . | . . . . . . . Parts Stripped . | . . . . . . . Power Chain Reactions . | . . . . . . . Alert | -11 -10 -10 -10 -9 -8 -8 ------- Run | Yrd Mat Min Exi Min Mat Sto Maximum Alert Level 4 | . 1 . . . 3 4 Low Security (%) 45 | 100 78 100 . 100 27 . Level 1 15 | . 21 . . . 10 26 Level 2 14 | . . . . . 36 12 Level 3 24 | . . . . . 25 59 Level 4 . | . . . . . . 1 Level 5 . | . . . . . . . High Security . | . . . . . . . Max Security . | . . . . . . . Sterilizations 1 | . . . . . 1 . Peak Influence 1142 | 15 236 150 . 5 854 1142 Initial 352 | . 3 70 . . . 352 Average 362 | 2 143 35 . . 443 682 Influence Increases 4522 | 45 729 307 . 15 1592 1834 Destroy 0b10 Robot/C 2380 | . 320 220 . . 1000 840 Destroy 0b10 Robot/NC 580 | 45 90 35 . 15 165 230 Destroy Leader 598 | . 80 40 . . 252 226 Successful Hack 97 | . 40 . . . 33 24 Select Force Hacks 120 | . 60 . . . 30 30 Disable Machine 270 | . . . . . 45 225 Destroy Structure 297 | . 4 12 . . 67 214 Lose Combat Pursuer 180 | . 135 . . . . 45 Influence Decreases 3384 | 40 553 418 70 15 758 1530 Entered New Map 665 | . 2 111 70 . . 482 Time Decay 2219 | 40 541 307 . 15 658 658 Lost Part 200 | . 10 . . . 100 90 Purge Threat 300 | . . . . . . 300 Squads Dispatched 23 | . 4 . . . 10 9 Investigation 11 | . 3 . . . 6 2 Extermination . | . . . . . . . Reinforcement 6 | . 1 . . . 3 2 Assault 5 | . . . . . 1 4 Garrison 1 | . . . . . . 1 Intercept . | . . . . . . . Searches Triggered . | . . . . . . . Construction Impeded 2 | . . . . . . 2 Haulers Reinforced . | . . . . . . . Active Scanning Responses . | . . . . . . . Cargo Convoy Interrupts . | . . . . . . . Stealth | -11 -10 -10 -10 -9 -8 -8 --------- Run | Yrd Mat Min Exi Min Mat Sto Distress Signals 10 | . 3 . . . 4 3 Communications Jammed . | . . . . . . . Distress Signals . | . . . . . . . Times Spotted 160 | . 31 11 . . 63 55 Peak Tracking Total 10 | . 4 3 . . 5 10 Tactical Retreats 8 | . 6 . . . . 2 Traps | -11 -10 -10 -10 -9 -8 -8 ------- Run | Yrd Mat Min Exi Min Mat Sto Traps Triggered 6 | . 3 . . . 1 2 Indirectly . | . . . . . . . Trap Hack Attempts . | . . . . . . . Triggered . | . . . . . . . Disarmed . | . . . . . . . Reprogrammed 6 | . . . . . . 6 Reused . | . . . . . . . Traps Extracted . | . . . . . . . Installed . | . . . . . . . Triggered . | . . . . . . . Machines | -11 -10 -10 -10 -9 -8 -8 ---------- Run | Yrd Mat Min Exi Min Mat Sto Machines Disabled 18 | . . . . . 3 15 Max in Single Turn 1 | . . . . . 1 1 Garrison Access 2 | . . . . . 1 1 Machines Repaired . | . . . . . . . Machines Dismantled . | . . . . . . . Machines Sabotaged . | . . . . . . . Overloaded Fab Kills . | . . . . . . . Hacking | -11 -10 -10 -10 -9 -8 -8 --------- Run | Yrd Mat Min Exi Min Mat Sto Machines Accessed 41 | . 9 . 1 . 16 15 Terminals 27 | . 6 . . . 10 11 Fabricators . | . . . . . . . Repair Stations 3 | . 1 . . . 1 1 Recycling Units 6 | . 2 . . . 2 2 Scanalyzers 2 | . . . . . 2 . Garrison Access 2 | . . . . . 1 1 Total Hacks 144 | . 37 . 1 . 53 53 Successful 79 | . 18 . 1 . 26 34 Failed 63 | . 18 . . . 26 19 Catastrophic 7 | . 3 . . . 2 2 Database Lockouts 2 | . 1 . . . 1 . Manual 93 | . 31 . . . 34 28 Terminals 101 | . 30 . . . 36 35 Fabricators . | . . . . . . . Repair Stations 15 | . 3 . . . 4 8 Recycling Units 15 | . 4 . . . 5 6 Scanalyzers 7 | . . . . . 7 . Garrison Access 5 | . . . . . 1 4 Terminal Hacks 26 | . 7 . 1 . 5 13 Record 1 | . . . 1 . . . Part Schematic 1 | . . . . . . 1 Robot Analysis 8 | . 5 . . . 2 1 Prototype ID Bank 3 | . . . . . 1 2 Open Door 3 | . . . . . . 3 Branch Access Points 1 | . . . . . . 1 Machine Index 1 | . . . . . . 1 Terminal Index 3 | . 1 . . . 1 1 Unreport Threat 2 | . . . . . . 2 Locate Traps 2 | . 1 . . . 1 . Reprogram Traps 1 | . . . . . . 1 Fabricator Hacks . | . . . . . . . Repair Station Hacks 14 | . 2 . . . 4 8 Scan Component 7 | . 1 . . . 2 4 Repair 7 | . 1 . . . 2 4 Recycling Unit Hacks . | . . . . . . . Scanalyzer 5 | . . . . . 5 . Insert Component 3 | . . . . . 3 . Analyze 2 | . . . . . 2 . Garrison Access Hacks 2 | . . . . . 1 1 Seal Access 2 | . . . . . 1 1 Unauthorized Hacks 31 | . 9 . . . 10 12 Terminals 19 | . 5 . . . 7 7 Botnet 19 | . 5 . . . 7 7 Fabricators . | . . . . . . . Repair Stations . | . . . . . . . Recycling Units 12 | . 4 . . . 3 5 Reject 4 | . 1 . . . 1 2 Recyclers 3 | . 1 . . . 1 1 Mask 1 | . . . . . . 1 Tunnel 4 | . 2 . . . 1 1 Scanalyzers . | . . . . . . . Garrison Access . | . . . . . . . Data Cores Recovered 1 | . . . . . . 1 Used . | . . . . . . . Hacking Detections 32 | . 7 . . . 14 11 Full Trace Events 8 | . 1 . . . 6 1 Feedback Events 1 | . . . . . 1 . Corruption 1 | . . . . . 1 . Feedback Blocked . | . . . . . . . Robot Schematics Acquired . | . . . . . . . Robots Built . | . . . . . . . Authchips . | . . . . . . . Time . | . . . . . . . Total Robot Build Rating . | . . . . . . . Part Schematics Acquired 3 | . . . . . 2 1 Parts Built . | . . . . . . . Authchips . | . . . . . . . Time . | . . . . . . . Total Part Build Rating . | . . . . . . . Parts Repaired 7 | . 1 . . . 2 4 Time 260 | . 32 . . . 58 170 Parts Recycled . | . . . . . . . Recycled Matter . | . . . . . . . Retrieved Matter . | . . . . . . . Retrieved Components . | . . . . . . . Parts Scanalyzed 2 | . . . . . 2 . Part Schematics Acquired 2 | . . . . . 2 . Parts Damaged . | . . . . . . . Bothacking | -11 -10 -10 -10 -9 -8 -8 ------------ Run | Yrd Mat Min Exi Min Mat Sto Used RIF Installer . | . . . . . . . Robots Hacked . | . . . . . . . Non-combat . | . . . . . . . Combat . | . . . . . . . Robot Hacks Applied . | . . . . . . . Relay Couplers Released . | . . . . . . . Fabnet Peak Effective % . | . . . . . . . Robots Rewired . | . . . . . . . Allies Hacked . | . . . . . . . Hacks Repelled . | . . . . . . . Allies | -11 -10 -10 -10 -9 -8 -8 -------- Run | Yrd Mat Min Exi Min Mat Sto Total Allies . | . . . . . . . Largest Group . | . . . . . . . Highest-Rated Group . | . . . . . . . Highest-Rated Ally . | . . . . . . . Total Orders . | . . . . . . . Ally Attacks . | . . . . . . . Total Damage . | . . . . . . . Kills . | . . . . . . . Allies Corrupted . | . . . . . . . Allies Melted . | . . . . . . . Intel | -11 -10 -10 -10 -9 -8 -8 ------- Run | Yrd Mat Min Exi Min Mat Sto Active Infowar (turns) 257 | 113 77 . . 66 1 . Sensors 1 | . . . . . 1 . Terrain 256 | 113 77 . . 66 . . Robot Analysis Total 8 | . 5 . . . 2 1 Derelict Logs Recovered 2 | . . 2 . . . . Drone Launches . | . . . . . . . Drone Recoveries . | . . . . . . . Exploration | -11 -10 -10 -10 -9 -8 -8 ------------- Run | Yrd Mat Min Exi Min Mat Sto Turns Passed 9344 | 226 1913 1284 447 253 2756 2465 Spaces Moved 4670 | 101 982 642 277 148 1283 1237 Core 9 | 6 . . . . . 3 Treads 4412 | 95 982 642 277 148 1283 985 Legs . | . . . . . . . Wheels 249 | . . . . . . 249 Hover . | . . . . . . . Flight . | . . . . . . . Fastest Speed 50 | 50 160 160 160 160 155 86 Average Speed 156 | 153 160 160 160 160 160 148 Slowest Speed 600 | 160 160 160 160 160 241 600 Overloaded Moves . | . . . . . . . Propulsion Burnouts . | . . . . . . . Robots Hopped . | . . . . . . . Potential Cave-ins . | . . . . . . . Cave-ins Triggered . | . . . . . . . Exploration Rate (%) 69 | 6 97 99 61 41 91 94 Regions Visited 6 Branch Regions 4 Pre-discovered Areas 7 | . 2 2 1 . 1 1 Known Exits Taken 1 | . . . . . 1 . Unknown Exits Taken 5 | 1 1 1 1 1 . . Scrap Searched 3 | . . 1 . 2 . . Spaces Dug 6 | . . . . . 6 . Terrain Destroyed 325 | . . 12 . . 71 242 Melee . | . . . . . . . Projectile 163 | . . . . . 1 162 AOE 162 | . . 12 . . 70 80 Terrain Rammed . | . . . . . . . Walls Destroyed . | . . . . . . . Machines Disabled . | . . . . . . . Actions | -11 -10 -10 -10 -9 -8 -8 --------- Run | Yrd Mat Min Exi Min Mat Sto Total 5813 | 129 1161 846 284 158 1673 1562 Wait 451 | . 49 161 . . 107 134 Move 4664 | 100 981 641 276 147 1282 1237 Hop . | . . . . . . . Pick Up 72 | 2 20 6 1 3 26 14 Fast Attach 33 | 7 3 . . . 11 12 Attach 25 | . . 1 . 2 14 8 Detach 12 | . 1 . 2 . 7 2 Swap 78 | . 9 3 1 2 47 16 Drop 72 | . 13 5 4 1 39 10 Fire 405 | 20 85 29 . 3 139 129 Melee . | . . . . . . . Ram . | . . . . . . . Kick . | . . . . . . . Crush 1 | . . . . . 1 . Escape Stasis . | . . . . . . . Rewire . | . . . . . . . Trap . | . . . . . . . Miscellaneous . | . . . . . . . Route ------- -11/Scrapyard -10/Materials (discovered 5 exits: [*Mat x3] / [*Min x2]) -10/Mines (discovered 4 exits: [*Mat x2] / *Exi / [*Sub]) -10/Exiles -9/Mines -8/Materials (discovered 5 exits: [*Fac x3] / *Sto x2) -8/Storage (discovered 2 exits: [*Fac] / Rec) History --------- Turn | Location | Event 8 | -11/Scrapyard | Discovered new exit (range 15) 227 | -11/Scrapyard | Entered Materials 326 | -10/Materials | Build established: Mutant 383 | -10/Materials | Discovered new exit (range 15) 609 | -10/Materials | Central database locked down 711 | -10/Materials | Discovered new exit (range 8) 874 | -10/Materials | Discovered new exit (range 10) 1257 | -10/Materials | Discovered new exit (range 16) 1752 | -10/Materials | Repaired Hvy. Assault Rifle 1841 | -10/Materials | Discovered new exit (range 16) 2140 | -10/Materials | Entered Mines 2198 | -10/Mines | Learned location of Zion (-6) 2351 | -10/Mines | Assembled infested the area 2644 | -10/Mines | Discovered new exit (range 6) 2678 | -10/Mines | Discovered new exit (range 10) 2775 | -10/Mines | Discovered new exit (range 5) 3249 | -10/Mines | Learned location of Storage (-8) 3418 | -10/Mines | Discovered new exit (range 5) 3424 | -10/Mines | Entered Exiles 3468 | -10/Exiles | Met 8R-AWN 3494 | -10/Exiles | Met EX-HEX 3553 | -10/Exiles | Met EX-DEC 3773 | -10/Exiles | Met EX-BIN 3857 | -10/Exiles | Discovered new exit (range 10) 3871 | -10/Exiles | Entered Mines 4083 | -9/Mines | Discovered new exit (range 16) 4124 | -9/Mines | Entered Materials 4124 | -8/Materials | Evolved 4 slots: Propulsion x1, Utility x1, Weapon x2 4125 | -8/Materials | Identified exit to Storage 4413 | -8/Materials | Build established: Tank 4683 | -8/Materials | Discovered new exit (range 11) 4787 | -8/Materials | Build established: Scavenger-Tank 5123 | -8/Materials | Build established: Tank 5311 | -8/Materials | Discovered new exit (range 3) 5537 | -8/Materials | Build established: Gunner 5836 | -8/Materials | Central database locked down 5886 | -8/Materials | Repaired Hvy. Assault Rifle 5913 | -8/Materials | Repaired Grenade Launcher 6124 | -8/Materials | First assault squad dispatched 6129 | -8/Materials | Lost 5 parts (1p2u2w) 6470 | -8/Materials | Build established: Scavenger-Tank 6537 | -8/Materials | Discovered exit to Storage (range 8) 6687 | -8/Materials | Sterilization system engaged 6687 | -8/Materials | Non-combat units ordered to evacuate 6787 | -8/Materials | Combat units ordered to evacuate 6792 | -8/Materials | Discovered new exit (range 16) 6880 | -8/Materials | Entered Storage 6898 | -8/Storage | Identified exit to Recycling 6910 | -8/Storage | Garrison activated, responded to threat 7188 | -8/Storage | Build established: Hacker-Gunner 7787 | -8/Storage | Discovered new exit (range 16) 8080 | -8/Storage | First assault squad dispatched 8129 | -8/Storage | Build established: Gunner 8439 | -8/Storage | Repaired Gauss Cannon 8479 | -8/Storage | Repaired Adv. Treads? 8535 | -8/Storage | Repaired Gauss Cannon 8588 | -8/Storage | Repaired Gauss Cannon 8709 | -8/Storage | Found Prototype Launcher 8709 | -8/Storage | Identified Gui. Missile Launcher 9048 | -8/Storage | Lost 8 parts (1p3n1u3w) 9266 | -8/Storage | Build established: Scavenger-Gunner 9345 | -8/Storage | Self-destructed Last Messages --------------- 09316_ B-36 Bruiser destroyed. 09319_ Acquired 70 matter. 09320_ U-05 Engineer lays Concrete. 09321_ K-01 Serf collects debris. 09321_ U-05 Engineer lays Concrete. 09324_ K-01 Serf collects debris. 09324_ U-05 Engineer lays Concrete. 09328_ K-01 Serf collects debris. 09328_ U-05 Engineer lays Concrete. 09331_ The unstable cave ceiling collapses. 09331_ R-06 Scavenger collects Particle Gun. 09331_ U-05 Engineer lays Concrete. 09332_ The unstable cave ceiling collapses. 09332_ K-01 Serf collects debris. 09332_ U-05 Engineer lays Concrete. 09334_ U-05 Engineer builds a Wall. 09335_ R-06 Scavenger collects Aluminum Leg. 09335_ K-01 Serf collects debris. 09338_ U-05 Engineer builds a Wall. 09339_ R-06 Scavenger collects Carbon-fiber Leg. Map ----- +----------------------------------------------------+ | ?????????????????????????# " """" + #?????????# | | ?????????????????????????# "= = " # ##??????### | | ?????????????????????????# "!=!!" # T#???##?#"" | | ?????????????????????????# """""" # ##??## ##"T | | ?????????????????????##### ???? # #???#! | | ?????????????????????#"""########### #???# | | ???????????????????###"Y"#### #???# """" | | ???????????????????# # #???# """" | | ??????????????????## """ # #???# """" | | ??????????????????# """ ############???# " "" | | ??????????????????## """ #??????????????# ! | | ???????????????????# #?????###??????# [ | | ???????????????????# """ #?????#]]??????####### | | ???????????????????# """ #?????#]]???????????#% | | ????????????????####% """ #?????#" "#######???## | | ????????????????# " %! #?????? ########### | | ????????????????########+############+##### *%!% | | ??????????????????????# ^ %## | | ??????????????????????# * %## | | ????????######????????# ^ = ! % ## | | ????????#""""#????????##################### % ## | | ???????##""T"#####??????????????????### ## %### | | ??????## #??????#####?????????#### # # | | ??????# ###????#! !#????????????###% # | | ??????#" """ # ###??#! !#??????????????# # | | ??????## """ !" % #??#@ !#??????????????# %%# | | ??????#" "" ##% #??#! !#??????????????# # | | ??????#" * " [####?## #????#"""####### # | | ??????#"[ = ###???#T #?#### ## ## # | | ????###" ##?##### = ### # # # # | | ????# "############+#########+# !=* # %% | | ????# % % % %= % # | | ????# < % %% %%% # | | ????## %= % %%! % =* # | | ????# [% ###+################+#### ## # # ### | | ????## * *=### % ####?? | | ?????##" *!##?# """ "" "" # ###### | | ??????#" !* *!!%% !##?# """ """ """ # + | | ??????#""*% !!%% %!#??# """ """ """ # ###### | | ??????##" ! / = ##? ^ # #????? | | ???????## =|[%#??? ######????? | | ????????##"############%#?#############??????????? | | | | | | | | | | | | | | | | | +----------------------------------------------------+ Best States ------------- Heat Dissipation 45 Energy Generation 18 Energy Capacity 310 Matter Stores 300 Matter Capacity 300 Sight Range 16 Terrain Scan Range 16 Terrain Scan Density 10 Armor Coverage 600 Evasion (%) 42 Targeting Accuracy 8 Recoil Reduction 6 Offensive Hacking 20 Item Schematics ----------------- Cmb. Airjet | -8/Materials | Scanalyzed Lgt. Treads | -8/Materials | Scanalyzed Recoil Stabilizer | -8/Storage | Hacked Robot Schematics ------------------ None Fabricated ------------ Nothing Repaired ---------- Hvy. Assault Rifle | 1% | -10/Materials Hvy. Assault Rifle | 20% | -8/Materials Grenade Launcher | 20% | -8/Materials Gauss Cannon | 21% | -8/Storage Adv. Treads | 28% | -8/Storage Gauss Cannon | 55% | -8/Storage Gauss Cannon | 56% | -8/Storage Alien Tech Used ----------------- None Achievements -------------- None Challenges ------------ None Game ------ Seed StormOpticalCleaver Manual? 0 Play Time 00:55:25 Cumulative 370.9 hours Start 2025.07.05 @ 05:09:34 End 2025.07.05 @ 06:04:38 Sessions 1 Manual Loads 0 Difficulty Rogue Special Mode None Game No. 215 Rogue 215 Adventurer 0 Explorer 0 Win Type - Total 4 Types 2/0/1/1/0/0/0/0/0/0 Lore% 84 Gallery% 73 Achievement% 67 Wizard Run 0 Options --------- Layout 2 ASCII 0 Keyboard 1 Movement Vi Keybinds 0 Fullscreen 2 Font 16/Tamsyn Map View 55x47 Zoom Use 0% Tactical HUD 1 Map Filters NONE Filters NONE Steam 0 RUN: 1520ac5a-5742-4485-abbb-90dd9bf342ea